lending/lending_fUSD_20260330
["ID","MTS","AMOUNT","RATE_DAILY","PERIOD"]
[419073403,1774834242556,-500.0,0.00012418,2]
[419073404,1774834242565,-500.0,0.00012418,2]
[419073405,1774834242574,-500.0,0.00012418,2]
[419073406,1774834242583,-500.0,0.00012473,2]
[419073407,1774834242594,-9905.5980765,0.00012473,2]
[419073408,1774834242603,-151.0,0.00012473,2]
[419073409,1774834242612,-272.62944185,0.00012473,2]
[419073410,1774834242621,-500.0,0.00012528,2]
[419073411,1774834242630,-10272.10520533,0.00012528,2]
[419073412,1774834242639,-151.0,0.00012528,2]
[419073413,1774834242648,-282.71673119,0.00012528,2]
[419073414,1774834242657,-753.89050251,0.00012542,2]
[419073415,1774834242666,-500.0,0.00012583,2]
[419073416,1774834242676,-10652.17309792,0.00012583,2]
[419073417,1774834242685,-151.0,0.00012583,2]
[419073418,1774834242694,-293.17725025,0.00012583,2]
[419073419,1774834242703,-500.0,0.00012638,2]
[419073420,1774834242713,-11046.30350255,0.00012638,2]
[419073421,1774834242723,-151.0,0.00012638,2]
[419073422,1774834242732,-304.02480851,0.00012638,2]
[419073423,1774834242742,-500.0,0.00012693,2]
[419073424,1774834242751,-11455.01673214,0.00012693,2]
[419073426,1774834242760,-151.0,0.00012693,2]
[419073427,1774834242770,-315.27372642,0.00012693,2]
[419073428,1774834242779,-500.0,0.00012748,2]
[419073429,1774834242788,-11878.85235123,0.00012748,2]
[419073430,1774834242798,-151.0,0.00012748,2]
[419073431,1774834242806,-326.9388543,0.00012748,2]
[419073432,1774834242815,-500.0,0.00012803,2]
[419073433,1774834242825,-12318.36988823,0.00012803,2]
[419073434,1774834242834,-151.0,0.00012803,2]
[419073435,1774834242843,-339.03559191,0.00012803,2]
[419073436,1774834242852,-500.0,0.00012858,2]
[419073437,1774834242861,-12774.14957409,0.00012858,2]
[419073438,1774834242870,-151.0,0.00012858,2]
[419073439,1774834242881,-14453.20675463,0.00012905,2]
[419073440,1774834242890,-4078.83721184,0.00012905,2]
[419073441,1774834242899,-500.0,0.00012913,2]
[419073442,1774834242909,-13246.79310833,0.00012913,2]
[419073443,1774834242918,-151.0,0.00012913,2]
[419073444,1774834242928,-151.0,0.00012966,2]
[419073445,1774834242937,-217.15233878,0.00012966,2]
[419073446,1774834242946,-1481.23780761,0.00012966,2]
[419073447,1774834242955,-217.15233878,0.00012966,2]
[419073448,1774834242964,-181.08010149,0.00012966,2]
[419073449,1774834242973,-200.0,0.00012966,2]
[419073450,1774834242983,-719.04747942,0.00012966,2]
[419073451,1774834242993,-290.26104003,0.00012966,2]
[419073452,1774834243003,-771.01748645,0.00012966,2]
[419073453,1774834243012,-500.0,0.00012968,2]
[419073454,1774834243022,-13736.92445334,0.00012968,2]
[419073455,1774834243032,-151.0,0.00012968,2]
[419073456,1774834243042,-1600.0,0.00013014,2]
[419073457,1774834243051,-157.0,0.00013044,3]
[419073458,1774834243061,-156.86,0.00013226,2]
[419073459,1774834243071,-4609.0,0.00013393,2]
[419073460,1774834243080,-175.825498,0.00013424,2]
[419073461,1774834243090,-160.0,0.00013424,2]
[419073462,1774834243099,-160.0,0.00013424,2]
[419073463,1774834243108,-172.359001,0.00013424,2]
[419073464,1774834243118,-225.18697532,0.00013514,2]
[419073465,1774834243127,-151.0,0.00013514,2]
[419073466,1774834243136,-1536.04360649,0.00013514,2]
[419073467,1774834243145,-225.18697532,0.00013514,2]
[419073468,1774834243155,-187.78006525,0.00013514,2]
[419073469,1774834243165,-200.0,0.00013514,2]
[419073470,1774834243174,-559.93197847,0.00013514,2]
[419073471,1774834243184,-301.00069851,0.00013514,2]
[419073472,1774834243194,-799.54513345,0.00013514,2]
[419073473,1774834243203,-1252.0,0.00013589,2]
[419073474,1774834243213,-7182.0,0.000136,7]
[419073475,1774834243546,-408.97114274,0.000136,2]
[419073476,1774834243569,-500.0,0.00013616,2]
[419073477,1774834243578,-14453.20675463,0.00013654,2]
[419073478,1774834243588,-4078.83721184,0.00013654,2]
[419073479,1774834243599,-1416.99036535,0.00013672,2]
[419073480,1774834243608,-500.0,0.00013695,2]
[419073481,1774834243618,-500.0,0.00013695,2]
[419073482,1774834243628,-327.14015113,0.00013695,2]
[419073483,1774834243639,-156.35128686,0.00013695,2]
[419073484,1774834243648,-500.0,0.00013695,2]
[419073485,1774834243658,-617.26327893,0.00013695,2]
[419073486,1774834243668,-500.0,0.00013695,2]
[419073487,1774834243677,-500.0,0.00013695,2]
[419073488,1774834243687,-500.0,0.00013695,2]
[419073489,1774834243697,-500.0,0.00013695,2]
[419073490,1774834243707,-150.0,0.00013695,2]
[419073491,1774834243716,-500.0,0.00013695,2]
[419073492,1774834243726,-150.0,0.00013695,2]
[419073493,1774834243736,-500.0,0.00013695,2]
[419073494,1774834243746,-150.0,0.00013695,2]
[419073495,1774834243756,-182.16957206,0.00013695,2]
[419073496,1774834243766,-177.47420593,0.00013695,2]
[419073497,1774834243776,-500.0,0.00013695,2]
[419073498,1774834243786,-150.0,0.00013695,2]
[419073499,1774834243795,-500.0,0.00013695,2]
[419073500,1774834243805,-150.0,0.00013695,2]
[419073501,1774834243815,-500.0,0.00013695,2]
[419073502,1774834243825,-150.0,0.00013695,2]
[419073503,1774834243834,-500.0,0.00013695,2]
[419073504,1774834243844,-150.0,0.00013695,2]
[419073505,1774834243854,-500.0,0.00013695,2]
[419073506,1774834243864,-248.0269298,0.00013695,2]
[419073507,1774834243874,-500.0,0.00013695,2]
[419073508,1774834243883,-500.0,0.00013695,2]
[419073509,1774834243893,-500.0,0.00013695,2]
[419073510,1774834243903,-500.0,0.00013695,2]
[419073511,1774834243912,-584.88271405,0.00013695,2]
[419073512,1774834243922,-500.0,0.00013695,2]
[419073513,1774834243931,-500.0,0.00013695,2]
[419073514,1774834243941,-218.88234748,0.00013695,2]
[419073515,1774834243950,-500.0,0.00013695,2]
[419073516,1774834243960,-500.0,0.00013695,2]
[419073517,1774834243970,-500.0,0.00013695,2]
[419073518,1774834243979,-232.93019597,0.00013695,2]
[419073519,1774834243989,-500.0,0.00013695,2]
[419073520,1774834243998,-500.0,0.00013695,2]
[419073521,1774834244008,-500.0,0.00013695,2]
[419073522,1774834244017,-500.0,0.00013695,2]
[419073523,1774834244027,-353.36335448,0.00013695,2]
[419073524,1774834244038,-761.0,0.00013695,2]
[419073525,1774834244048,-500.0,0.00013695,2]
[419073526,1774834244058,-761.0,0.00013695,2]
[419073527,1774834244067,-500.0,0.00013695,2]
[419073528,1774834244077,-761.0,0.00013695,2]
[419073529,1774834244087,-500.0,0.00013695,2]
[419073530,1774834244096,-761.0,0.00013695,2]
[419073531,1774834244106,-500.0,0.00013695,2]
[419073532,1774834244115,-761.0,0.00013695,2]
[419073533,1774834244124,-761.0,0.00013695,2]
[419073534,1774834244133,-500.0,0.00013695,2]
[419073535,1774834244142,-761.0,0.00013695,2]
[419073536,1774834244152,-500.0,0.00013695,2]
[419073537,1774834244162,-500.0,0.00013695,2]
[419073538,1774834244171,-500.0,0.00013695,2]
[419073539,1774834244180,-761.0,0.00013695,2]
[419073540,1774834244189,-500.0,0.00013695,2]
[419073541,1774834244199,-761.0,0.00013695,2]
[419073542,1774834244208,-500.0,0.00013695,2]
[419073543,1774834244217,-500.0,0.00013695,2]
[419073544,1774834244227,-761.0,0.00013695,2]
[419073545,1774834244235,-500.0,0.00013695,2]
[419073546,1774834244245,-761.0,0.00013695,2]
[419073547,1774834244254,-219.10448352,0.00013695,2]
[419073548,1774834244263,-500.0,0.00013695,2]
[419073549,1774834244272,-761.0,0.00013695,2]
[419073550,1774834244282,-500.0,0.00013695,2]
[419073551,1774834244290,-761.0,0.00013695,2]
[419073552,1774834244301,-500.0,0.00013695,2]
[419073553,1774834244310,-761.0,0.00013695,2]
[419073554,1774834244320,-500.0,0.00013695,2]
[419073555,1774834244329,-761.0,0.00013695,2]
[419073556,1774834244339,-500.0,0.00013695,2]
[419073557,1774834244349,-761.0,0.00013695,2]
[419073558,1774834244359,-500.0,0.00013695,2]
[419073559,1774834244368,-761.0,0.00013695,2]
[419073560,1774834244378,-500.0,0.00013695,2]
[419073561,1774834244388,-500.0,0.00013695,2]
[419073562,1774834244398,-500.0,0.00013695,2]
[419073563,1774834244408,-500.0,0.00013695,2]
[419073564,1774834244418,-529.93669017,0.00013695,2]
[419073565,1774834244427,-500.0,0.00013695,2]
[419073566,1774834244436,-500.0,0.00013695,2]
[419073567,1774834244446,-500.0,0.00013695,2]
[419073568,1774834244456,-761.0,0.00013695,2]
[419073569,1774834244466,-500.0,0.00013695,2]
[419073570,1774834244477,-500.0,0.00013695,2]
[419073571,1774834244487,-500.0,0.00013695,2]
[419073572,1774834244499,-275.8086179,0.00013695,2]
[419073573,1774834244509,-761.0,0.00013695,2]
[419073574,1774834244519,-761.0,0.00013695,2]
[419073575,1774834244530,-761.0,0.00013695,2]
[419073576,1774834244540,-761.0,0.00013695,2]
[419073577,1774834244552,-761.0,0.00013695,2]
[419073578,1774834244562,-781.31329962,0.00013695,2]
[419073579,1774834244572,-160.0,0.00013695,2]
[419073580,1774834244582,-562.08744976,0.00013698,2]
[419073581,1774834244592,-500.0,0.00013698,2]
[419073582,1774834244601,-411.90998007,0.00013698,2]
[419073583,1774834244611,-500.0,0.00013698,2]
[419073584,1774834244621,-643.91396228,0.00013698,2]
[419073585,1774834244630,-500.0,0.00013698,2]
[419073586,1774834244640,-500.0,0.00013698,2]
[419073587,1774834244650,-500.0,0.00013698,2]
[419073588,1774834244659,-404.32730924,0.00013698,2]
[419073589,1774834244669,-500.0,0.00013698,2]
[419073590,1774834244678,-500.0,0.00013698,2]
[419073591,1774834244687,-500.0,0.00013698,2]
[419073592,1774834244697,-500.0,0.00013698,2]
[419073593,1774834244706,-518.76747318,0.00013698,2]
[419073594,1774834244716,-500.0,0.00013698,2]
[419073595,1774834244727,-500.0,0.00013698,2]
[419073596,1774834244737,-500.0,0.00013698,2]
[419073597,1774834244747,-500.0,0.00013698,2]
[419073598,1774834244756,-500.0,0.00013698,2]
[419073599,1774834244765,-500.0,0.00013698,2]
[419073600,1774834244775,-1061.37,0.00013698,2]
[419073601,1774834244784,-1061.37,0.00013698,2]
[419073602,1774834244794,-1061.37,0.00013698,2]
[419073603,1774834244805,-1061.37,0.00013698,2]
[419073604,1774834244815,-1061.37,0.00013698,2]
[419073605,1774834244825,-1061.37,0.00013698,2]
[419073606,1774834244838,-1061.37,0.00013698,2]
[419073607,1774834244848,-1061.37,0.00013698,2]
[419073608,1774834244858,-1061.37,0.00013698,2]
[419073609,1774834244867,-1061.37,0.00013698,2]
[419073610,1774834244876,-1061.37,0.00013698,2]
[419073611,1774834244886,-1061.37,0.00013698,2]
[419073612,1774834244898,-1061.37,0.00013698,2]
[419073613,1774834244908,-1061.37,0.00013698,2]
[419073614,1774834244918,-1061.37,0.00013698,2]
[419073615,1774834244928,-500.0,0.00013698,2]
[419073616,1774834244939,-500.0,0.00013698,2]
[419073617,1774834244948,-500.0,0.00013698,2]
[419073618,1774834244958,-500.0,0.00013698,2]
[419073619,1774834244967,-500.0,0.00013698,2]
[419073620,1774834244977,-500.0,0.00013698,2]
[419073621,1774834244987,-500.0,0.00013698,2]
[419073622,1774834244996,-500.0,0.00013698,2]
[419073623,1774834245005,-500.0,0.00013698,2]
[419073624,1774834245015,-500.0,0.00013698,2]
[419073625,1774834245024,-500.0,0.00013698,2]
[419073626,1774834245035,-500.0,0.00013698,2]
[419073627,1774834245044,-500.0,0.00013698,2]
[419073628,1774834245054,-500.0,0.00013698,2]
[419073629,1774834245064,-500.0,0.00013698,2]
[419073630,1774834245074,-500.0,0.00013698,2]
[419073631,1774834245085,-500.0,0.00013698,2]
[419073632,1774834245095,-500.0,0.00013698,2]
[419073633,1774834245105,-500.0,0.00013698,2]
[419073634,1774834245115,-500.0,0.00013698,2]
[419073635,1774834245125,-500.0,0.00013698,2]
[419073636,1774834245135,-500.0,0.00013698,2]
[419073637,1774834245144,-500.0,0.00013698,2]
[419073638,1774834245154,-500.0,0.00013698,2]
[419073639,1774834245163,-500.0,0.00013698,2]
[419073640,1774834245172,-500.0,0.00013698,2]
[419073641,1774834245181,-500.0,0.00013698,2]
[419073642,1774834245191,-500.0,0.00013698,2]
[419073643,1774834245200,-500.0,0.00013698,2]
[419073644,1774834245211,-500.0,0.00013698,2]
[419073645,1774834245223,-500.0,0.00013698,2]
[419073646,1774834245233,-500.0,0.00013698,2]
[419073647,1774834245243,-500.0,0.00013698,2]
[419073648,1774834245252,-500.0,0.00013698,2]
[419073649,1774834245263,-500.0,0.00013698,2]
[419073650,1774834245272,-500.0,0.00013698,2]
[419073651,1774834245282,-500.0,0.00013698,2]
[419073652,1774834245291,-500.0,0.00013698,2]
[419073653,1774834245301,-500.0,0.00013698,2]
[419073654,1774834245313,-500.0,0.00013698,2]
[419073655,1774834245324,-470.75659377,0.00013698,2]
[419073656,1774834245334,-500.0,0.00013698,2]
[419073657,1774834245345,-500.0,0.00013698,2]
[419073658,1774834245355,-500.0,0.00013698,2]
[419073659,1774834245366,-500.0,0.00013698,2]
[419073660,1774834245377,-500.0,0.00013698,2]
[419073661,1774834245388,-500.0,0.00013698,2]
[419073662,1774834245398,-500.0,0.00013698,2]
[419073663,1774834245409,-500.0,0.00013698,2]
[419073664,1774834245420,-500.0,0.00013698,2]
[419073665,1774834245432,-500.0,0.00013698,2]
[419073666,1774834245442,-500.0,0.00013698,2]
[419073667,1774834245452,-500.0,0.00013698,2]
[419073668,1774834245463,-500.0,0.00013698,2]
[419073669,1774834245473,-500.0,0.00013698,2]
[419073670,1774834245482,-500.0,0.00013698,2]
[419073671,1774834245491,-500.0,0.00013698,2]
[419073672,1774834245501,-159.6,0.00013698,2]
[419073673,1774834245511,-500.0,0.00013698,2]
[419073674,1774834245521,-500.0,0.00013698,2]
[419073675,1774834245531,-500.0,0.00013698,2]
[419073676,1774834245541,-551.92950635,0.00013698,2]
[419073677,1774834245551,-500.0,0.00013698,2]
[419073678,1774834245562,-500.0,0.00013698,2]
[419073679,1774834245571,-500.0,0.00013698,2]
[419073680,1774834245581,-500.0,0.00013698,2]
[419073683,1774834245590,-500.0,0.00013698,2]
[419073685,1774834245599,-500.0,0.00013698,2]
[419073686,1774834245608,-500.0,0.00013698,2]
[419073687,1774834245618,-500.0,0.00013698,2]
[419073688,1774834245628,-500.0,0.00013698,2]
[419073689,1774834245637,-500.0,0.00013698,2]
[419073690,1774834245647,-500.0,0.00013698,2]
[419073691,1774834245656,-500.0,0.00013698,2]
[419073692,1774834245666,-500.0,0.00013698,2]
[419073693,1774834245675,-500.0,0.00013698,2]
[419073694,1774834245684,-500.0,0.00013698,2]
[419073695,1774834245694,-500.0,0.00013698,2]
[419073696,1774834245703,-500.0,0.00013698,2]
[419073697,1774834245714,-500.0,0.00013698,2]
[419073698,1774834245723,-500.0,0.00013698,2]
[419073699,1774834245734,-234.62655045,0.00013698,2]
[419073700,1774834245744,-500.0,0.00013698,2]
[419073701,1774834245753,-500.0,0.00013698,2]
[419073702,1774834245763,-500.0,0.00013698,2]
[419073703,1774834245773,-500.0,0.00013698,2]
[419073704,1774834245783,-500.0,0.00013698,2]
[419073705,1774834245792,-500.0,0.00013698,2]
[419073706,1774834245801,-500.0,0.00013698,2]
[419073707,1774834245811,-500.0,0.00013698,2]
[419073708,1774834245820,-500.0,0.00013698,2]
[419073709,1774834245831,-500.0,0.00013698,2]
[419073710,1774834245840,-500.0,0.00013698,2]
[419073711,1774834245850,-513.55432759,0.00013698,2]
[419073712,1774834245859,-500.0,0.00013698,2]
[419073713,1774834245869,-500.0,0.00013698,2]
[419073714,1774834245879,-500.0,0.00013698,2]
[419073715,1774834245888,-500.0,0.00013698,2]
[419073716,1774834245898,-500.0,0.00013698,2]
[419073717,1774834245907,-500.0,0.00013698,2]
[419073718,1774834245916,-500.0,0.00013698,2]
[419073719,1774834245926,-500.0,0.00013698,2]
[419073720,1774834245935,-500.0,0.00013698,2]
[419073721,1774834245944,-500.0,0.00013698,2]
[419073722,1774834245955,-500.0,0.00013698,2]
[419073723,1774834245965,-500.0,0.00013698,2]
[419073724,1774834245975,-500.0,0.00013698,2]
[419073725,1774834245984,-500.0,0.00013698,2]
[419073726,1774834245995,-500.0,0.00013698,2]
[419073727,1774834246005,-500.0,0.00013698,2]
[419073728,1774834246015,-500.0,0.00013698,2]
[419073729,1774834246024,-500.0,0.00013698,2]
[419073730,1774834246034,-500.0,0.00013698,2]
[419073731,1774834246044,-500.0,0.00013698,2]
[419073732,1774834246054,-500.0,0.00013698,2]
[419073733,1774834246063,-500.0,0.00013698,2]
[419073734,1774834246072,-500.0,0.00013698,2]
[419073735,1774834246082,-500.0,0.00013698,2]
[419073736,1774834246091,-500.0,0.00013698,2]
[419073737,1774834246100,-500.0,0.00013698,2]
[419073738,1774834246111,-500.0,0.00013698,2]
[419073739,1774834246122,-500.0,0.00013698,2]
[419073740,1774834246133,-500.0,0.00013698,2]
[419073741,1774834246143,-500.0,0.00013698,2]
[419073742,1774834246155,-641.9011736,0.00013698,2]
[419073743,1774834246164,-500.0,0.00013698,2]
[419073744,1774834246174,-500.0,0.00013698,2]
[419073745,1774834246183,-500.0,0.00013698,2]
[419073746,1774834246193,-500.0,0.00013698,2]
[419073747,1774834246203,-500.0,0.00013698,2]
[419073748,1774834246213,-500.0,0.00013698,2]
[419073749,1774834246223,-500.0,0.00013698,2]
[419073750,1774834246235,-500.0,0.00013698,2]
[419073751,1774834246245,-500.0,0.00013698,2]
[419073752,1774834246255,-500.0,0.00013698,2]
[419073753,1774834246264,-500.0,0.00013698,2]
[419073754,1774834246274,-500.0,0.00013698,2]
[419073755,1774834246284,-500.0,0.00013698,2]
[419073756,1774834246294,-500.0,0.00013698,2]
[419073757,1774834246304,-500.0,0.00013698,2]
[419073758,1774834246315,-500.0,0.00013698,2]
[419073759,1774834246327,-500.0,0.00013698,2]
[419073760,1774834246336,-500.0,0.00013698,2]
[419073761,1774834246346,-500.0,0.00013698,2]
[419073762,1774834246355,-500.0,0.00013698,2]
[419073763,1774834246365,-500.0,0.00013698,2]
[419073764,1774834246374,-500.0,0.00013698,2]
[419073765,1774834246383,-500.0,0.00013698,2]
[419073766,1774834246392,-200.0,0.00013699,2]
[419073767,1774834246402,-501.20618875,0.00013699,2]
[419073769,1774834246412,-500.0,0.00013699,2]
[419073771,1774834246421,-224.83675979,0.00013699,2]
[419073773,1774834246430,-500.0,0.00013699,2]
[419073775,1774834246438,-500.0,0.00013699,2]
[419073776,1774834246447,-500.0,0.00013699,2]
[419073777,1774834246456,-500.0,0.00013699,2]
[419073778,1774834246466,-500.0,0.00013699,2]
[419073779,1774834246476,-500.0,0.00013699,2]
[419073780,1774834246485,-500.0,0.00013699,2]
[419073781,1774834246494,-500.0,0.00013699,2]
[419073782,1774834246503,-500.0,0.00013699,2]
[419073783,1774834246513,-500.76787534,0.00013699,2]
[419073784,1774834246522,-500.0,0.00013699,2]
[419073785,1774834246531,-500.0,0.00013699,2]
[419073786,1774834246541,-503.47432567,0.00013699,2]
[419073787,1774834246550,-500.0,0.00013699,2]
[419073788,1774834246560,-500.0,0.00013699,2]
[419073789,1774834246570,-500.0,0.00013699,2]
[419073790,1774834246582,-500.0,0.00013699,2]
[419073791,1774834246591,-500.0,0.00013699,2]
[419073792,1774834246600,-518.29101627,0.00013699,2]
[419073793,1774834246610,-500.0,0.00013699,2]
[419073794,1774834246619,-500.0,0.00013699,2]
[419073795,1774834246628,-500.0,0.00013699,2]
[419073796,1774834246638,-501.38454067,0.00013699,2]
[419073797,1774834246647,-500.0,0.00013699,2]
[419073798,1774834246656,-500.0,0.00013699,2]
[419073799,1774834246666,-500.0,0.00013699,2]
[419073800,1774834246675,-544.06350435,0.00013699,2]
[419073801,1774834246684,-500.0,0.00013699,2]
[419073802,1774834246694,-500.0,0.00013699,2]
[419073803,1774834246703,-500.0,0.00013699,2]
[419073804,1774834246712,-500.0,0.00013699,2]
[419073805,1774834246721,-500.0,0.00013699,2]
[419073806,1774834246731,-211.00600243,0.00013699,2]
[419073807,1774834246740,-500.0,0.00013699,2]
[419073808,1774834246750,-165.28912037,0.00013699,2]
[419073809,1774834246760,-3633.96,0.000137,2]
[419073810,1774834246769,-3483.35,0.000137,2]
[419073811,1774834246779,-4164.08,0.000137,2]
[419073812,1774834246788,-3200.33,0.000137,2]
[419073813,1774834246798,-11496.42161444,0.000137,2]
[419073814,1774834246807,-524.01,0.000137,2]
[419073815,1774834246818,-524.01,0.000137,2]
[419073816,1774834246827,-524.01,0.000137,2]
[419073817,1774834246837,-524.01,0.000137,2]
[419073818,1774834246847,-524.01,0.000137,2]
[419073819,1774834246857,-261.56,0.00013772,2]
[419073820,1774834246866,-301.35162556,0.00013787,2]
[419073821,1774834246876,-338.9312,0.000138,2]
[419073822,1774834246886,-160.0,0.00013894,2]
[419073823,1774834246895,-959.8630956,0.00013894,2]
[419073824,1774834246905,-160.0,0.00013894,2]
[419073825,1774834246914,-7163.0,0.00013895,5]
[419073826,1774834246924,-5000.0,0.000139,5]
[419073827,1774834246934,-152.0,0.00013929,3]
[419073828,1774834246946,-168.18,0.00013948,2]
[419073829,1774834246956,-168.18,0.00013948,2]
[419073830,1774834246966,-204.57168,0.00014,2]
[419073831,1774834246975,-157.0,0.00014039,3]
[419073832,1774834246986,-233.51889341,0.00014062,2]
[419073833,1774834246996,-151.0,0.00014062,2]
[419073834,1774834247005,-1592.87721993,0.00014062,2]
[419073835,1774834247015,-233.51889341,0.00014062,2]
[419073836,1774834247025,-194.72792766,0.00014062,2]
[419073837,1774834247034,-200.0,0.00014062,2]
[419073838,1774834247044,-312.13772435,0.00014062,2]
[419073839,1774834247055,-829.12830338,0.00014062,2]
[419073840,1774834247064,-249.512117,0.00014115,7]
[419073841,1774834247074,-60000.0,0.00014115,2]
[419073842,1774834247083,-3000.0,0.00014137,2]
[419073843,1774834247092,-2500.0,0.00014137,2]
[419073844,1774834247101,-15555.58,0.000142,2]
[419073845,1774834247110,-500.0,0.00014246,2]
[419073846,1774834247120,-1000.0,0.00014247,2]
[419073847,1774834247130,-500.0,0.00014247,2]
[419073848,1774834247139,-1000.0,0.00014247,2]
[419073849,1774834247148,-501.65522073,0.00014247,2]
[419073850,1774834247158,-500.0,0.00014247,2]
[419073851,1774834247168,-1000.0,0.00014247,2]
[419073852,1774834247177,-1000.0,0.00014247,2]
[419073853,1774834247186,-500.0,0.00014247,2]
[419073854,1774834247196,-1000.0,0.00014247,2]
[419073855,1774834247205,-1000.0,0.00014247,2]
[419073856,1774834247214,-1000.0,0.00014247,2]
[419073857,1774834247225,-1000.0,0.00014247,2]
[419073858,1774834247234,-1000.0,0.00014247,2]
[419073859,1774834247244,-1000.0,0.00014247,2]
[419073860,1774834247253,-1000.0,0.00014247,2]
[419073861,1774834247262,-1000.0,0.00014247,2]
[419073862,1774834247273,-1000.0,0.00014247,2]
[419073863,1774834247282,-500.0,0.00014247,2]
[419073864,1774834247294,-1000.0,0.00014247,2]
[419073865,1774834247303,-1000.0,0.00014247,2]
[419073866,1774834247315,-1000.0,0.00014247,2]
[419073867,1774834247324,-1000.0,0.00014247,2]
[419073868,1774834247335,-501.04093936,0.00014247,2]
[419073869,1774834247345,-469.56562684,0.00014331,2]
[419073870,1774834247355,-198.86965625,0.00014331,2]
[419073871,1774834247364,-309.95,0.00014379,2]
[419073872,1774834247374,-14453.20675463,0.00014403,2]
[419073873,1774834247383,-4078.83721184,0.00014403,2]
[419073874,1774834247392,-436.49,0.000145,2]
[419073875,1774834247402,-47997.03,0.00014535,2]
[419073876,1774834247411,-436.49,0.00014584,2]
[419073877,1774834247422,-500.0,0.00014599,2]
[419073878,1774834247431,-500.0,0.00014599,2]
[419073879,1774834247441,-1038.7,0.000146,2]
[419073880,1774834247452,-151.0,0.0001461,2]
[419073881,1774834247463,-1651.81367706,0.0001461,2]
[419073882,1774834247472,-242.15909246,0.0001461,2]
[419073883,1774834247481,-242.15909246,0.0001461,2]
[419073884,1774834247491,-201.93286099,0.0001461,2]
[419073885,1774834247501,-200.0,0.0001461,2]
[419073886,1774834247510,-323.68682015,0.0001461,2]
[419073887,1774834247519,-859.80605061,0.0001461,2]
[419073888,1774834247528,-152.0,0.00014641,4]
[419073889,1774834247539,-4269.0,0.000147,2]
[419073890,1774834247548,-6453.0,0.00014732,2]
[419073891,1774834247558,-261.56,0.00014739,2]
[419073892,1774834247567,-408.97114272,0.0001475,2]
[419073893,1774834247576,-2117.100907,0.00014766,7]
[419073894,1774834247586,-374.797819,0.00014766,7]
[419073895,1774834247595,-1416.99036534,0.00014786,2]
[419073896,1774834247605,-500.0,0.00014794,2]
[419073897,1774834247614,-902.73289396,0.00014795,2]
[419073898,1774834247901,-1510.44418561,0.00014795,2]
[419073899,1774834247911,-1502.2699292,0.00014795,2]
[419073900,1774834247920,-1000.0,0.00014795,2]
[419073901,1774834247930,-1500.0,0.00014795,2]
[419073902,1774834247939,-1258.63516052,0.00014795,2]
[419073903,1774834247949,-1500.0,0.00014795,2]
[419073904,1774834247959,-1500.0,0.00014795,2]
[419073905,1774834247968,-500.0,0.00014795,2]
[419073906,1774834247977,-1500.0,0.00014795,2]
[419073907,1774834247987,-1500.0,0.00014795,2]
[419073908,1774834247996,-1322.88131498,0.00014795,2]
[419073909,1774834248006,-500.0,0.00014795,2]
[419073910,1774834248015,-1007.9229115,0.00014795,2]